bitfinex/quotes_BTCUSD_20250610
["timestamp","ask_amount","ask_price","bid_price","bid_amount"]
[1749529079717,0.59227089,109420.0,109410.0,0.49853431]
[1749529079940,0.59227089,109420.0,109410.0,0.48141532]
[1749529081693,1.08481089,109420.0,109410.0,0.49867162]
[1749529082340,1.08481089,109420.0,109410.0,0.48155271]
[1749529082554,1.08481089,109420.0,109410.0,0.48155272]
[1749529082763,1.08481089,109420.0,109410.0,0.49867162]
[1749529082978,1.08481089,109420.0,109410.0,0.49011217]
[1749529083240,1.08481089,109420.0,109410.0,0.49867162]
[1749529083544,1.08481089,109420.0,109410.0,0.49011217]
[1749529083759,1.08481089,109420.0,109410.0,0.48155272]
[1749529083971,1.08481089,109420.0,109410.0,0.49867162]
[1749529084181,1.08481089,109420.0,109410.0,0.49867164]
[1749529084377,1.08481089,109420.0,109410.0,0.47299326]
[1749529084519,1.08481089,109420.0,109410.0,0.48155271]
[1749529084761,1.08481089,109420.0,109410.0,0.47299326]
[1749529085265,1.08481089,109420.0,109410.0,0.51579056]
[1749529085516,1.08481089,109420.0,109410.0,0.46648705]
[1749529085739,1.08481089,109420.0,109410.0,0.4901111]
[1749529085911,1.08481089,109420.0,109410.0,0.49867052]
[1749529086062,1.08481089,109420.0,109410.0,0.4901111]
[1749529086477,1.08481089,109420.0,109410.0,0.50722994]
[1749529086676,1.08481089,109420.0,109410.0,0.53508888]
[1749529086882,1.08481089,109420.0,109410.0,0.55220756]
[1749529087358,1.08481089,109420.0,109410.0,0.55220753]
[1749529087688,1.08481089,109420.0,109410.0,0.55220748]
[1749529087887,1.08481089,109420.0,109410.0,0.4901111]
[1749529088086,1.08481089,109420.0,109410.0,0.51578947]
[1749529088306,1.08481089,109420.0,109410.0,0.4901111]
[1749529088535,1.08481089,109420.0,109410.0,0.51579068]
[1749529088736,1.08481089,109420.0,109410.0,0.51579065]
[1749529089318,1.08481089,109420.0,109410.0,0.49867094]
[1749529089538,0.96765089,109420.0,109410.0,0.49867093]
[1749529089744,1.08481089,109420.0,109410.0,0.52652954]
[1749529089957,1.08481089,109420.0,109410.0,0.54364899]
[1749529090170,1.08481089,109420.0,109410.0,0.53508926]
[1749529090378,1.08481089,109420.0,109410.0,0.54364892]
[1749529090587,1.08481089,109420.0,109410.0,0.55221087]
[1749529090794,1.05401089,109420.0,109410.0,0.55221087]
[1749529091029,1.05401089,109420.0,109410.0,0.54365043]
[1749529091276,1.05401089,109420.0,109410.0,0.55221033]
[1749529091483,1.05401089,109420.0,109410.0,0.54365007]
[1749529091697,0.93685089,109420.0,109410.0,0.55221033]
[1749529091912,1.05401089,109420.0,109410.0,0.52652954]
[1749529092142,1.05401089,109420.0,109410.0,0.54365006]
[1749529092371,1.05401089,109420.0,109410.0,0.55221032]
[1749529092573,1.05401089,109420.0,109410.0,0.55221102]
[1749529092784,1.05401089,109420.0,109410.0,0.55221137]
[1749529093001,1.05401089,109420.0,109410.0,0.55221131]
[1749529093636,0.93685089,109420.0,109410.0,0.52652954]
[1749529093848,1.05401089,109420.0,109410.0,0.53509144]
[1749529094057,1.05401089,109420.0,109410.0,0.55221525]
[1749529094270,0.93685089,109420.0,109410.0,0.55221525]
[1749529094488,0.92082735,109420.0,109410.0,0.55622521]
[1749529094706,0.94767218,109420.0,109410.0,0.5937725]
[1749529094927,0.94767218,109420.0,109410.0,0.58521042]
[1749529095351,0.94767218,109420.0,109410.0,0.60233397]
[1749529095555,0.94767218,109420.0,109410.0,0.59469583]
[1749529095758,0.94767218,109420.0,109410.0,0.59470022]
[1749529095996,0.94767218,109420.0,109410.0,0.59470242]
[1749529096219,0.94767218,109420.0,109410.0,0.57950242]
[1749529096429,0.94767218,109420.0,109410.0,0.55381042]
[1749529096640,0.94767218,109420.0,109410.0,0.57950246]
[1749529096845,0.94767218,109420.0,109410.0,0.57950248]
[1749529097269,0.94767218,109420.0,109410.0,0.56237444]
[1749529097474,0.94767218,109420.0,109410.0,0.17950248]
[1749529097719,1.08541089,109420.0,109410.0,0.12482909]
[1749529097932,1.08541089,109420.0,109410.0,0.15223007]
[1749529098149,1.08541089,109420.0,109410.0,0.55223007]
[1749529098373,1.08541089,109420.0,109410.0,0.5351034]
[1749529098889,1.08541089,109420.0,109410.0,0.55223026]
[1749529099749,1.07087004,109420.0,109410.0,0.55223026]
[1749529099973,1.08541089,109420.0,109410.0,0.55223013]
[1749529100212,1.08541089,109420.0,109410.0,0.54366668]
[1749529100426,1.08541089,109420.0,109410.0,0.5265403]
[1749529100632,1.08541089,109420.0,109410.0,0.54366666]
[1749529100842,1.08541089,109420.0,109410.0,0.55222984]
[1749529101044,1.08541089,109420.0,109410.0,0.15222955]
[1749529101270,1.08541089,109420.0,109410.0,0.11581118]
[1749529101501,1.08541089,109420.0,109410.0,0.51581165]
[1749529101714,1.08541089,109420.0,109410.0,0.51581204]
[1749529101914,1.08541089,109420.0,109410.0,0.51581216]
[1749529102132,1.08541089,109420.0,109410.0,0.49012186]
[1749529102356,0.59251089,109420.0,109410.0,0.06272088]
[1749529102580,0.59251089,109420.0,109410.0,0.07128474]
[1749529102782,0.59251089,109420.0,109410.0,0.0798487]
[1749529102983,0.59251089,109420.0,109410.0,0.08841238]
[1749529103135,0.59251089,109420.0,109410.0,0.08841239]
[1749529103543,0.59251089,109420.0,109410.0,0.08839836]
[1749529103745,0.59251089,109420.0,109410.0,0.0798392]
[1749529103979,0.59251089,109420.0,109410.0,0.08839837]
[1749529104147,0.59251089,109420.0,109410.0,0.07983921]
[1749529104350,0.59251089,109420.0,109410.0,0.08839848]
[1749529104569,0.59251089,109420.0,109410.0,0.08839795]
[1749529105127,0.59251089,109420.0,109410.0,0.08839721]
[1749529105333,0.59251089,109420.0,109410.0,0.07983847]
[1749529105546,0.59251089,109420.0,109410.0,0.07127967]
[1749529105962,0.59251089,109420.0,109410.0,0.07983847]
[1749529106182,0.59251089,109420.0,109410.0,0.08839726]
[1749529106418,0.59251089,109420.0,109410.0,0.08839539]
[1749529106664,0.59251089,109420.0,109410.0,0.08838822]
[1749529107083,0.59251089,109420.0,109410.0,0.08838463]
[1749529107408,0.59251089,109420.0,109410.0,0.04080871]
[1749529108063,0.59251089,109420.0,109410.0,0.06647254]
[1749529108457,0.59251089,109420.0,109410.0,0.06647173]
[1749529108661,0.59251089,109420.0,109410.0,0.06647011]
[1749529109083,0.59251089,109420.0,109410.0,0.04936251]
[1749529109291,0.59251089,109420.0,109410.0,0.06647011]
[1749529109496,0.59251089,109420.0,109410.0,0.04936251]
[1749529109779,0.59251089,109420.0,109410.0,0.06647011]
[1749529110035,0.59251089,109420.0,109410.0,0.04080871]
[1749529110236,0.59251089,109420.0,109410.0,0.0664643]
[1749529110892,0.59251089,109420.0,109410.0,0.05791244]
[1749529111098,0.59251089,109420.0,109410.0,0.04080871]
[1749529111309,0.59251089,109420.0,109410.0,0.04935969]
[1749529111535,0.59251089,109420.0,109410.0,0.06646166]
[1749529112720,0.59251089,109420.0,109410.0,0.05791068]
[1749529112926,0.59251089,109420.0,109410.0,0.04080871]
[1749529113139,0.49947089,109420.0,109410.0,0.06646163]
[1749529113345,0.59251089,109420.0,109410.0,0.06646163]
[1749529114256,0.59251089,109420.0,109410.0,0.06645887]
[1749529114733,0.57328298,109420.0,109410.0,0.06645887]
[1749529114944,0.59251089,109420.0,109410.0,0.06645887]
[1749529115179,0.45612298,109420.0,109410.0,0.06645887]
[1749529115386,0.47535089,109420.0,109410.0,0.06645887]
[1749529115596,0.59243089,109420.0,109410.0,0.06645887]
[1749529115807,0.59243089,109420.0,109410.0,0.06645685]
[1749529116038,0.59243089,109420.0,109410.0,0.05790747]
[1749529116241,0.59243089,109420.0,109410.0,0.06645677]
[1749529116458,0.59243089,109420.0,109410.0,0.04080871]
[1749529116668,0.59243089,109420.0,109410.0,0.06645676]
[1749529117091,0.59243089,109420.0,109410.0,0.05790741]
[1749529117295,0.6699505,109420.0,109410.0,0.06645712]
[1749529117509,0.59243089,109420.0,109410.0,0.06645785]
[1749529117734,0.59243089,109420.0,109410.0,0.07979661]
[1749529117735,0.44395089,109420.0,109410.0,0.07979661]
[1749529117918,0.56239089,109420.0,109410.0,0.07979661]
[1749529118147,0.56239089,109420.0,109410.0,0.0883459]
[1749529118773,0.56239089,109420.0,109410.0,0.0883434]
[1749529119181,0.56239089,109420.0,109410.0,0.06269718]
[1749529119393,0.56239089,109420.0,109410.0,0.07979466]
[1749529119550,0.56239089,109420.0,109410.0,0.07979544]
[1749529119754,0.55477397,109420.0,109410.0,0.07124631]
[1749529120030,0.59369089,109420.0,109410.0,0.08834458]
[1749529120234,0.59369089,109420.0,109410.0,0.07979545]
[1749529120588,0.59369089,109420.0,109410.0,0.06269718]
[1749529120778,0.59369089,109420.0,109410.0,0.48834461]
[1749529120978,0.59369089,109420.0,109410.0,0.48834527]
[1749529121152,0.43633397,109420.0,109410.0,0.47979588]
[1749529121393,0.55465397,109420.0,109410.0,0.54019634]
[1749529121592,0.45345004,109420.0,109410.0,0.49090638]
[1749529121773,0.56227089,109420.0,109410.0,0.47380871]
[1749529121967,0.56227089,109420.0,109410.0,0.51022715]
[1749529122191,0.44395089,109420.0,109410.0,0.51022715]
[1749529122394,0.56227089,109420.0,109410.0,0.52732357]
[1749529122642,0.56227089,109420.0,109410.0,0.5321137]
[1749529122855,0.56227089,109420.0,109410.0,0.54921011]
[1749529123014,0.56227089,109420.0,109410.0,0.55775828]
[1749529123217,0.56227089,109420.0,109410.0,0.5321137]
[1749529123423,0.56227089,109420.0,109410.0,0.54921009]
[1749529123817,0.56227089,109420.0,109410.0,0.54066189]
[1749529124065,0.56227089,109420.0,109410.0,0.14066188]
[1749529124235,0.56227089,109420.0,109410.0,0.15776071]
[1749529124441,0.56227089,109420.0,109410.0,0.54066188]
[1749529124644,0.56227089,109420.0,109410.0,0.58511622]
[1749529124820,0.55477387,109420.0,109410.0,0.58510401]
[1749529125054,0.5639128,109420.0,109410.0,0.57655867]
[1749529125222,0.5639128,109420.0,109410.0,0.55946799]
[1749529125428,0.5639128,109420.0,109410.0,0.57655867]
[1749529125657,0.5639128,109420.0,109410.0,0.55946799]
[1749529125854,0.5639128,109420.0,109410.0,0.56801333]
[1749529126226,0.5639128,109420.0,109410.0,0.57655867]
[1749529126444,0.5639128,109420.0,109410.0,0.58510407]
[1749529126667,0.5639128,109420.0,109410.0,0.56801335]
[1749529126887,0.5639128,109420.0,109410.0,0.58510405]
[1749529127037,0.5639128,109420.0,109410.0,0.55946799]
[1749529131750,0.45043717,109420.0,109410.0,0.55946799]
[1749529131965,0.45805409,109420.0,109410.0,0.5321137]
[1749529132175,0.45805409,109420.0,109410.0,0.5867848]
[1749529132385,0.45805409,109420.0,109410.0,0.5321137]
[1749529134714,0.43882618,109420.0,109410.0,0.1321137]
[1749529134924,0.45805409,109420.0,109410.0,0.13439838]
[1749529135348,0.45805409,109420.0,109410.0,0.53439838]
[1749529135559,0.45805409,109420.0,109410.0,0.5321137]
[1749529136560,0.45043717,109420.0,109410.0,0.5321137]
[1749529136807,0.43108926,109420.0,109410.0,0.5867848]
[1749529138803,0.33708926,109420.0,109410.0,0.5867848]
[1749529139015,0.31240926,109420.0,109410.0,0.55036636]
[1749529139222,0.33708926,109420.0,109410.0,1.14342575]
[1749529139424,0.43104926,109420.0,109410.0,1.21622776]
[1749529139605,0.43104926,109420.0,109410.0,0.66029513]
[1749529140051,0.43004926,109420.0,109410.0,0.66029513]
[1749529140466,0.43504926,109420.0,109410.0,0.66029513]
[1749529140879,0.43404926,109420.0,109410.0,0.65629513]
[1749529141083,0.43704926,109420.0,109410.0,0.65729513]
[1749529145863,0.43704926,109420.0,109410.0,0.67437443]
[1749529146278,0.43704926,109420.0,109410.0,0.67436278]
[1749529146487,0.43704926,109420.0,109410.0,0.6828966]
[1749529146704,0.43704926,109420.0,109410.0,0.65729513]
[1749529146921,0.43704926,109420.0,109410.0,0.67436278]
[1749529147141,0.43704926,109420.0,109410.0,0.58449312]
[1749529147353,0.43704926,109420.0,109410.0,0.61014487]
[1749529147588,0.43704926,109420.0,109410.0,0.61014505]
[1749529147797,0.43704926,109420.0,109410.0,0.61014531]
[1749529148028,0.43704926,109420.0,109410.0,0.59304385]
[1749529148242,0.43704926,109420.0,109410.0,0.61014531]
[1749529148459,0.43704926,109420.0,109410.0,0.60159458]
[1749529148673,0.43704926,109420.0,109410.0,0.58449312]
[1749529149116,0.43704926,109420.0,109410.0,0.59304519]
[1749529149385,0.43704926,109420.0,109410.0,0.60159727]
[1749529149602,0.43704926,109420.0,109410.0,0.68295135]
[1749529150039,0.43704926,109420.0,109410.0,0.6658472]
[1749529150259,0.43704926,109420.0,109410.0,0.65729513]
[1749529150475,0.43704926,109420.0,109410.0,0.6658472]
[1749529150688,0.43704926,109420.0,109410.0,0.67439927]
[1749529151117,0.43704926,109420.0,109410.0,0.68295135]
[1749529151333,0.43704926,109420.0,109410.0,0.67439927]
[1749529151547,0.43704926,109420.0,109410.0,0.65729513]
[1749529151937,0.43704926,109420.0,109410.0,0.6658472]
[1749529152358,0.43704926,109420.0,109410.0,0.67439928]
[1749529152607,0.43704926,109420.0,109410.0,0.68295135]
[1749529152816,0.43704926,109420.0,109410.0,0.6658472]
[1749529153030,0.43704926,109420.0,109410.0,0.65729513]
[1749529153212,0.43704926,109420.0,109410.0,0.58260142]
[1749529153413,0.43704926,109420.0,109410.0,0.56549727]
[1749529153622,0.43704926,109420.0,109410.0,0.59115349]
[1749529153927,0.43704926,109420.0,109410.0,0.56549727]
[1749529154144,0.46764926,109420.0,109410.0,0.53249727]
[1749529154366,0.43704926,109420.0,109410.0,0.47679958]
[1749529154565,0.43704926,109420.0,109410.0,0.47679959]
[1749529154767,0.43704926,109420.0,109410.0,0.47679874]
[1749529155440,0.43704926,109420.0,109410.0,0.45969526]
[1749529155677,0.34308926,109420.0,109410.0,0.57254896]
[1749529155900,0.43672926,109420.0,109410.0,0.56399727]
[1749529156111,0.3522281,109420.0,109410.0,0.65579513]
[1749529156296,0.4458681,109420.0,109410.0,0.65579513]
[1749529158026,0.4458681,109420.0,109410.0,0.56110657]
[1749529158869,0.4458681,109420.0,109410.0,0.65593946]
[1749529159071,0.4455081,109420.0,109410.0,0.65593946]
[1749529161224,0.24483679,109420.0,109410.0,0.58299108]
[1749529161561,0.24483679,109420.0,109410.0,0.56110657]
[1749529162176,0.24475679,109420.0,109410.0,1.1170392]
[1749529162374,0.24475679,109420.0,109410.0,1.18998758]
[1749529162485,0.24475679,109420.0,109410.0,0.63405495]
[1749529164216,0.24475679,109420.0,109410.0,0.66196056]
[1749529167125,0.23561795,109420.0,109410.0,0.66196056]
[1749529167513,0.23561795,109420.0,109410.0,0.64686056]
[1749529169490,0.23561795,109420.0,109410.0,0.63046056]
[1749529171260,0.23561795,109420.0,109410.0,0.64869766]
[1749529173028,0.23561795,109420.0,109410.0,0.68059766]
[1749529177563,0.23561795,109420.0,109410.0,0.66459766]
[1749529177746,0.23561795,109420.0,109410.0,0.64869766]
[1749529178375,0.26701795,109420.0,109410.0,0.66579602]
[1749529178783,0.23561795,109420.0,109410.0,0.66579602]
[1749529179177,0.23561795,109420.0,109410.0,0.64869766]
[1749529179385,0.23561795,109420.0,109410.0,0.66582272]
[1749529180158,0.22670996,109420.0,109410.0,0.6743856]
[1749529180565,0.22670996,109420.0,109410.0,0.67438703]
[1749529180968,0.22670996,109420.0,109410.0,0.67438702]
[1749529181174,0.22670996,109420.0,109410.0,0.65726078]
[1749529181384,0.22670996,109420.0,109410.0,0.6658239]
[1749529182281,0.22670996,109420.0,109410.0,0.64869766]
[1749529182500,0.22670996,109420.0,109410.0,0.6658239]
[1749529182717,0.22670996,109420.0,109410.0,0.64869766]
[1749529182915,0.22670996,109420.0,109410.0,0.6658239]
[1749529183150,0.22670996,109420.0,109410.0,0.66582435]
[1749529183372,0.24330996,109420.0,109410.0,0.52960657]
[1749529183604,0.24330996,109420.0,109410.0,0.61974786]
[1749529183605,0.25860996,109420.0,109410.0,0.61974786]
[1749529184638,0.25860996,109420.0,109410.0,0.60262087]
[1749529184857,0.25860996,109420.0,109410.0,0.61974391]
[1749529185281,0.25860996,109420.0,109410.0,0.60262087]
[1749529185607,0.25860996,109420.0,109410.0,0.61974391]
[1749529186188,0.25860996,109420.0,109410.0,0.61974229]
[1749529186607,0.25860996,109420.0,109410.0,0.61974158]
[1749529187065,0.25860996,109420.0,109410.0,0.60262087]
[1749529187287,0.25860996,109420.0,109410.0,0.62830193]
[1749529188405,0.26860996,109420.0,109410.0,0.60262087]
[1749529188566,0.26860996,109420.0,109410.0,0.61118122]
[1749529188771,0.26860996,109420.0,109410.0,0.62830193]
[1749529189602,0.26860996,109420.0,109410.0,0.62830164]
[1749529190190,0.26860996,109420.0,109410.0,0.61118122]
[1749529190413,0.26860996,109420.0,109410.0,0.62830151]
[1749529190827,0.26860996,109420.0,109410.0,0.6197413]
[1749529191034,0.26860996,109420.0,109410.0,0.62830151]
[1749529191271,0.26860996,109420.0,109410.0,0.62830145]
[1749529191486,0.26860996,109420.0,109410.0,0.61974118]
[1749529193265,0.26860996,109420.0,109410.0,0.61974063]
[1749529193401,0.26860996,109420.0,109410.0,0.61974062]
[1749529195638,0.26860996,109420.0,109410.0,0.61974032]
[1749529195843,0.26860996,109420.0,109410.0,0.61974136]
[1749529196541,0.26860996,109420.0,109410.0,0.62830162]
[1749529197427,0.26860996,109420.0,109410.0,0.60262087]
[1749529197633,0.26860996,109420.0,109410.0,0.6197414]
[1749529197770,0.26860996,109420.0,109410.0,0.62830166]
[1749529197976,0.26860996,109420.0,109410.0,0.6197414]
[1749529198228,0.26860996,109420.0,109410.0,0.62830152]
[1749529199193,0.26860996,109420.0,109410.0,0.53650363]
[1749529199402,0.26860996,109420.0,109410.0,0.51938319]
[1749529199631,0.26860996,109420.0,109410.0,0.53650355]
[1749529200083,0.26860996,109420.0,109410.0,0.53650294]
[1749529200713,0.26860996,109420.0,109410.0,0.53650263]
[1749529201520,0.26860996,109420.0,109410.0,0.52794276]
[1749529202010,0.26860996,109420.0,109410.0,0.53650263]
[1749529202946,0.26860996,109420.0,109410.0,0.51082301]
[1749529203369,0.26860996,109420.0,109410.0,0.52794241]
[1749529203581,0.26860996,109420.0,109410.0,0.51082301]
[1749529203795,0.26860996,109420.0,109410.0,0.53650262]
[1749529204903,0.26860996,109420.0,109410.0,0.51938288]
[1749529205186,0.26860996,109420.0,109410.0,0.53650241]
[1749529206430,0.26860996,109420.0,109410.0,0.53650273]
[1749529206667,0.26860996,109420.0,109410.0,0.53650404]
[1749529206899,0.26860996,109420.0,109410.0,0.53650406]
[1749529207132,0.26860996,109420.0,109410.0,0.52794371]
[1749529207331,0.26860996,109420.0,109410.0,0.53650406]
[1749529207545,0.26860996,109420.0,109410.0,0.53650191]
[1749529208368,0.26860996,109420.0,109410.0,0.51082336]
[1749529208519,0.26860996,109420.0,109410.0,0.50226372]
[1749529208911,0.26860996,109420.0,109410.0,0.519383]
[1749529209734,0.26860996,109420.0,109410.0,0.51938381]
[1749529210141,0.26860996,109420.0,109410.0,0.49370409]
[1749529210340,0.26860996,109420.0,109410.0,0.51082698]
[1749529210546,0.26860996,109420.0,109410.0,0.49370409]
[1749529210764,0.26860996,109420.0,109410.0,0.51938842]
[1749529210962,0.26860996,109420.0,109410.0,0.44637411]
[1749529211377,0.26860996,109420.0,109410.0,0.43781267]
[1749529211579,0.26860996,109420.0,109410.0,0.44637411]
[1749529211852,0.25860996,109420.0,109410.0,0.43781172]
[1749529212082,0.25860996,109420.0,109410.0,0.49374001]
[1749529212367,0.25860996,109420.0,109410.0,0.5194229]
[1749529212554,0.25860996,109420.0,109410.0,0.51086194]
[1749529212765,0.25860996,109420.0,109410.0,0.5194229]
[1749529212997,0.25860996,109420.0,109410.0,0.49374001]
[1749529213409,0.25860996,109420.0,109410.0,0.51086194]
[1749529213609,0.25860996,109420.0,109410.0,0.50230097]
[1749529213838,0.25860996,109420.0,109410.0,0.51942302]
[1749529214003,0.25860996,109420.0,109410.0,0.51086202]
[1749529214206,0.25860996,109420.0,109410.0,0.51942302]
[1749529214682,0.25860996,109420.0,109410.0,0.50230101]
[1749529214873,0.25860996,109420.0,109410.0,0.51942302]
[1749529215292,0.25860996,109420.0,109410.0,0.51086202]
[1749529215671,0.25860996,109420.0,109410.0,0.51086211]
[1749529215874,0.25860996,109420.0,109410.0,0.50230106]
[1749529216239,0.25860996,109420.0,109410.0,0.51942337]
[1749529216687,0.25860996,109420.0,109410.0,0.50230106]
[1749529216889,0.25796996,109420.0,109410.0,0.51942295]
[1749529217089,0.25796996,109420.0,109410.0,0.51942284]
[1749529217289,0.25796996,109420.0,109410.0,0.49374001]
[1749529217494,0.25796996,109420.0,109410.0,0.51942284]
[1749529218778,0.25796996,109420.0,109410.0,0.51942283]
[1749529218997,0.14072996,109420.0,109410.0,0.49374001]
[1749529219198,0.22606996,109420.0,109410.0,0.51086239]
[1749529219424,0.10882996,109420.0,109410.0,1.06528448]
[1749529219629,0.00804839,109420.0,109410.0,1.39906579]
[1749529219829,0.05954424,109420.0,109410.0,1.40876726]
[1749529220168,0.15262424,109420.0,109410.0,1.40876249]
[1749529220455,0.15262424,109420.0,109410.0,1.39158753]
[1749529220661,0.03546424,109420.0,109410.0,1.40870492]
[1749529220875,0.14048548,109420.0,109410.0,0.99058753]
[1749529221016,0.14048548,109420.0,109410.0,1.00770566]
[1749529221217,0.15362432,109420.0,109410.0,1.43555448]
[1749529221419,0.14448548,109420.0,109410.0,1.43555448]
[1749529222032,0.14448548,109420.0,109410.0,1.43555438]
[1749529222456,0.03312839,109420.0,109410.0,2.22189131]
[1749529222670,0.11398582,109420.0,109410.0,2.24814688]
[1749529223014,0.08498582,109420.0,109410.0,2.2481469]
[1749529223203,0.08498582,109420.0,109410.0,2.24812528]
[1749529223423,0.10326275,109420.0,109410.0,2.05551055]
[1749529223564,0.11240117,109420.0,109410.0,1.50010437]
[1749529223771,0.11240117,109420.0,109410.0,1.49096442]
[1749529223987,0.12153984,109420.0,109410.0,1.47387015]
[1749529224345,0.12153984,109420.0,109410.0,1.49096445]
[1749529224544,0.12153984,109420.0,109410.0,1.49096446]
[1749529224678,0.13067868,109420.0,109410.0,1.49096446]
[1749529225307,0.12154127,109420.0,109410.0,1.49096446]
[1749529225545,0.12154135,109420.0,109410.0,1.49095404]
[1749529225751,0.30432329,109420.0,109410.0,0.87977577]
[1749529225949,0.28604578,109420.0,109410.0,0.87977664]
[1749529226150,0.28604578,109420.0,109410.0,0.77143647]
[1749529226351,0.28604578,109420.0,109410.0,0.8614391]
[1749529226616,0.28604578,109420.0,109410.0,0.6614391]
[1749529226734,0.28604578,109420.0,109410.0,0.78852413]
[1749529227367,0.28604578,109420.0,109410.0,0.78852255]
[1749529227597,0.28604578,109420.0,109410.0,0.78852256]
[1749529227834,0.27690685,109420.0,109410.0,0.78852289]
[1749529228066,0.27690685,109420.0,109410.0,0.78852305]
[1749529228685,0.27690685,109420.0,109410.0,0.86142219]
[1749529228887,0.27690685,109420.0,109410.0,0.64512219]
[1749529229112,0.27690685,109420.0,109410.0,0.60247182]
[1749529229338,0.27690685,109420.0,109410.0,0.60247233]
[1749529229763,0.27690685,109420.0,109410.0,0.60247363]
[1749529229971,0.23790685,109420.0,109410.0,0.60247363]
[1749529230825,0.23790685,109420.0,109410.0,0.60247314]
[1749529231037,0.23790685,109420.0,109410.0,0.58538679]
[1749529231465,0.23790685,109420.0,109410.0,0.6024731]
[1749529231734,0.23790685,109420.0,109410.0,0.60247309]
[1749529232189,0.23790685,109420.0,109410.0,0.58538679]
[1749529233244,0.23790685,109420.0,109410.0,0.6024718]
[1749529234060,0.23790685,109420.0,109410.0,0.60247341]
[1749529234286,0.23790685,109420.0,109410.0,0.58538679]
[1749529234551,0.23790685,109420.0,109410.0,0.60247243]
[1749529234779,0.23790685,109420.0,109410.0,0.63035135]
[1749529235003,0.23790685,109420.0,109410.0,0.63035136]
[1749529235642,0.23790685,109420.0,109410.0,0.63035093]
[1749529236245,0.23790685,109420.0,109410.0,0.6132659]
[1749529236468,0.23790685,109420.0,109410.0,0.63034905]
[1749529236715,0.23790685,109420.0,109410.0,0.6303488]
[1749529237124,0.31606685,109420.0,109410.0,0.6303488]
[1749529237661,0.31606685,109420.0,109410.0,0.63035147]
[1749529237903,0.31606685,109420.0,109410.0,0.63035143]
[1749529238068,0.31606685,109420.0,109410.0,0.6132659]
[1749529238255,0.31606685,109420.0,109410.0,0.58538679]
[1749529238256,0.34766685,109420.0,109410.0,0.58538679]
[1749529238489,0.34766685,109420.0,109410.0,0.50102101]
[1749529239356,0.36689476,109420.0,109410.0,0.50102101]
[1749529239582,0.36689476,109420.0,109410.0,0.50102547]
[1749529239794,0.36689476,109420.0,109410.0,0.4753856]
[1749529240004,0.36689476,109420.0,109410.0,0.50102262]
[1749529241057,0.36689476,109420.0,109410.0,0.49247695]
[1749529241348,0.36689476,109420.0,109410.0,0.10102265]
[1749529241549,0.36689476,109420.0,109410.0,0.1010229]
[1749529241829,0.36689476,109420.0,109410.0,0.4753856]
[1749529242034,0.36689476,109420.0,109410.0,0.50102243]
[1749529242256,0.36689476,109420.0,109410.0,0.4753856]
[1749529242472,0.36689476,109420.0,109410.0,0.50102236]
[1749529243210,0.37451168,109420.0,109410.0,0.53748735]
[1749529243428,0.37451168,109420.0,109410.0,0.52894202]
[1749529243634,0.37451168,109420.0,109410.0,0.52894225]
[1749529243836,0.37451168,109420.0,109410.0,0.53748808]
[1749529244916,0.37451168,109420.0,109410.0,0.53748307]
[1749529245142,0.37451168,109420.0,109410.0,0.52893724]
[1749529245342,0.37451168,109420.0,109410.0,0.52039387]
[1749529245624,0.37451168,109420.0,109410.0,0.54602381]
[1749529245841,0.37451168,109420.0,109410.0,0.54602384]
[1749529246655,0.49291168,109420.0,109410.0,0.54601615]
[1749529246861,0.49291168,109420.0,109410.0,0.45485536]
[1749529247515,0.49291168,109420.0,109410.0,0.42923307]
[1749529247721,0.49291168,109420.0,109410.0,0.54597686]
[1749529248543,0.49291168,109420.0,109410.0,0.52889533]
[1749529248740,0.49291168,109420.0,109410.0,0.545977]
[1749529249309,0.49291168,109420.0,109410.0,0.53743619]
[1749529249510,0.49291168,109420.0,109410.0,0.545977]
[1749529250126,0.49291168,109420.0,109410.0,0.5288944]
[1749529250338,0.49291168,109420.0,109410.0,0.53743424]
[1749529250550,0.49291168,109420.0,109410.0,0.5459741]
[1749529251667,0.49291168,109420.0,109410.0,0.52889441]
[1749529251879,0.49291168,109420.0,109410.0,0.52889354]
[1749529252077,0.49291168,109420.0,109410.0,0.56783614]
[1749529252333,0.49291168,109420.0,109410.0,0.56783639]
[1749529252541,0.49291168,109420.0,109410.0,0.55075813]
[1749529252746,0.49291168,109420.0,109410.0,0.56783654]
[1749529252951,0.49291168,109420.0,109410.0,0.56783655]
[1749529253358,0.49291168,109420.0,109410.0,0.56783982]
[1749529253563,0.49291168,109420.0,109410.0,0.54221895]
[1749529253770,0.49291168,109420.0,109410.0,0.56783982]
[1749529253976,0.49291168,109420.0,109410.0,0.50405098]
[1749529254208,0.49291168,109420.0,109410.0,0.49551047]
[1749529254423,0.59925039,109420.0,109410.0,0.50405312]
[1749529254654,0.59925039,109420.0,109410.0,0.47842947]
[1749529254877,0.59925039,109420.0,109410.0,0.49551211]
[1749529255096,0.59925039,109420.0,109410.0,0.50405122]
[1749529255323,0.59925039,109420.0,109410.0,0.45863662]
[1749529255560,0.59925039,109420.0,109410.0,0.45863663]
[1749529255796,0.59925039,109420.0,109410.0,0.46063663]
[1749529256052,0.59925039,109420.0,109410.0,0.477715]
[1749529256521,0.59226457,109420.0,109410.0,0.477715]
[1749529256734,0.59626457,109420.0,109410.0,0.47771588]
[1749529256954,0.59626457,109420.0,109410.0,0.07771588]
[1749529257199,0.59626457,109420.0,109410.0,0.06063663]
[1749529257450,0.47910457,109420.0,109410.0,0.47771632]
[1749529257659,0.59626457,109420.0,109410.0,0.45209745]
[1749529257865,0.59626457,109420.0,109410.0,0.5050486]
[1749529258119,0.47910457,109420.0,109410.0,0.5050486]
[1749529258340,0.59626457,109420.0,109410.0,0.5050486]
[1749529259016,0.59626457,109420.0,109410.0,0.50504706]
[1749529259225,1.08916457,109420.0,109410.0,0.49650735]
[1749529259453,1.08916457,109420.0,109410.0,0.47942947]
[1749529259672,1.08916457,109420.0,109410.0,0.50504578]
[1749529259895,1.08916457,109420.0,109410.0,0.49650735]
[1749529260120,1.08916457,109420.0,109410.0,0.50504578]
[1749529260818,1.08916457,109420.0,109410.0,0.50504756]
[1749529261051,1.10916457,109420.0,109410.0,0.50505017]
[1749529261273,1.10916457,109420.0,109410.0,0.50505016]
[1749529261493,0.99520894,109420.0,109410.0,0.50505006]
[1749529261723,0.87804894,109420.0,109410.0,0.50505006]
[1749529261971,0.99520894,109420.0,109410.0,0.54149866]
[1749529262190,0.99520894,109420.0,109410.0,0.54149878]
[1749529262627,0.99520894,109420.0,109410.0,0.53295698]
[1749529262839,0.99520894,109420.0,109410.0,0.54149725]
[1749529263051,1.00282586,109420.0,109410.0,0.51587644]
[1749529263281,1.00282586,109420.0,109410.0,0.4879681]
[1749529263494,1.00282586,109420.0,109410.0,0.50505237]
[1749529263704,1.00282586,109420.0,109410.0,0.49651516]
[1749529263914,0.99520894,109420.0,109410.0,0.51587644]
[1749529264128,0.87804894,109420.0,109410.0,0.53296349]
[1749529264335,0.95199795,109420.0,109410.0,0.50563263]
[1749529264540,0.95199795,109420.0,109410.0,0.48854601]
[1749529264754,0.97122586,109420.0,109410.0,0.49708931]
[1749529264978,0.97122586,109420.0,109410.0,0.07539953]
[1749529265403,0.97122586,109420.0,109410.0,0.07539951]
[1749529266039,0.97122586,109420.0,109410.0,0.47539953]